[Event "*** Titled Tuesday Blitz"]
[Site "Chess.com"]
[Date "2020.10.20"]
[Round "2"]
[White "XDPS"]
[Black "AwareIdea"]
[Result "1/2-1/2"]
[WhiteElo "2721"]
[BlackElo "2469"]
[TimeControl "180+1"]
[EndTime "10:19:07 PDT"]
[Termination "Game drawn - insufficient material"]

1. e4 {[%clk 0:03:00.9]} 1... e5 {[%clk 0:02:59.6]} 2. Nf3 {[%clk 0:03:00.4]}
2... Nc6 {[%clk 0:02:58.9]} 3. Bb5 {[%clk 0:03:00.6]} 3... Nf6 {[%clk
0:02:58.6]} 4. O-O {[%clk 0:02:32]} 4... Nxe4 {[%clk 0:02:57.6]} 5. d4 {[%clk
0:02:32.2]} 5... Nd6 {[%clk 0:02:57.2]} 6. Bxc6 {[%clk 0:02:32.7]} 6... dxc6
{[%clk 0:02:58.1]} 7. dxe5 {[%clk 0:02:33.4]} 7... Nf5 {[%clk 0:02:58.6]} 8.
Qxd8+ {[%clk 0:02:34.3]} 8... Kxd8 {[%clk 0:02:59.3]} 9. Nc3 {[%clk 0:02:35.2]}
9... Bd7 {[%clk 0:02:59.1]} 10. h3 {[%clk 0:02:35.6]} 10... Kc8 {[%clk
0:02:57.9]} 11. Rd1 {[%clk 0:02:36.1]} 11... Be7 {[%clk 0:02:49.7]} 12. b3
{[%clk 0:02:35]} 12... b6 {[%clk 0:02:48.1]} 13. Ne4 {[%clk 0:02:29]} 13... h6
{[%clk 0:02:40.8]} 14. c4 {[%clk 0:02:16.8]} 14... Be6 {[%clk 0:02:35.7]} 15. g4
{[%clk 0:02:01.1]} 15... Nh4 {[%clk 0:02:34.3]} 16. Nxh4 {[%clk 0:02:01.7]}
16... Bxh4 {[%clk 0:02:33.8]} 17. f4 {[%clk 0:01:36.2]} 17... g6 {[%clk
0:02:13.6]} 18. Kg2 {[%clk 0:01:04.5]} 18... Rd8 {[%clk 0:01:59.8]} 19. Be3
{[%clk 0:00:57.2]} 19... Kb7 {[%clk 0:01:55]} 20. Rf1 {[%clk 0:00:50.4]} 20...
Rd3 {[%clk 0:01:47.1]} 21. Rf3 {[%clk 0:00:50.4]} 21... Re8 {[%clk 0:01:37.3]}
22. Bf2 {[%clk 0:00:46.1]} 22... Rxf3 {[%clk 0:01:29.9]} 23. Kxf3 {[%clk
0:00:47]} 23... Be7 {[%clk 0:01:29.7]} 24. Rd1 {[%clk 0:00:36.5]} 24... a5
{[%clk 0:01:28.8]} 25. a4 {[%clk 0:00:30.4]} 25... h5 {[%clk 0:01:18.2]} 26. Ng3
{[%clk 0:00:25.8]} 26... hxg4+ {[%clk 0:01:17.6]} 27. hxg4 {[%clk 0:00:26.7]}
27... Rh8 {[%clk 0:00:43.6]} 28. f5 {[%clk 0:00:25.4]} 28... gxf5 {[%clk
0:00:38.3]} 29. gxf5 {[%clk 0:00:26.3]} 29... Bc8 {[%clk 0:00:38.5]} 30. f6
{[%clk 0:00:04.1]} 30... Bb4 {[%clk 0:00:30.3]} 31. Rh1 {[%clk 0:00:04.3]} 31...
Rd8 {[%clk 0:00:28.4]} 32. Ke4 {[%clk 0:00:03.3]} 32... Rd2 {[%clk 0:00:25]} 33.
Be3 {[%clk 0:00:03.8]} 33... Rb2 {[%clk 0:00:22.8]} 34. Rh7 {[%clk 0:00:04.4]}
34... Be6 {[%clk 0:00:22.2]} 35. Nf5 {[%clk 0:00:05]} 35... Rxb3 {[%clk
0:00:20.8]} 36. Nh6 {[%clk 0:00:05.4]} 36... Bxc4 {[%clk 0:00:14.7]} 37. Kf4
{[%clk 0:00:04.8]} 37... Bc3 {[%clk 0:00:10.3]} 38. Nxf7 {[%clk 0:00:02.9]}
38... Bxf7 {[%clk 0:00:06.5]} 39. Rxf7 {[%clk 0:00:03.8]} 39... Bxe5+ {[%clk
0:00:06.7]} 40. Kxe5 {[%clk 0:00:02.4]} 40... Rxe3+ {[%clk 0:00:06.5]} 41. Kf4
{[%clk 0:00:03.1]} 41... Re1 {[%clk 0:00:06.3]} 42. Rh7 {[%clk 0:00:03.5]} 42...
b5 {[%clk 0:00:06.7]} 43. axb5 {[%clk 0:00:03.5]} 43... cxb5 {[%clk 0:00:07.2]}
44. f7 {[%clk 0:00:04.4]} 44... Rf1+ {[%clk 0:00:07.1]} 45. Ke5 {[%clk
0:00:04.5]} 45... a4 {[%clk 0:00:07.5]} 46. Ke6 {[%clk 0:00:05.2]} 46... Kb6
{[%clk 0:00:07.8]} 47. Rh6 {[%clk 0:00:04.8]} 47... Rxf7 {[%clk 0:00:06.7]} 48.
Kxf7+ {[%clk 0:00:05.3]} 48... Ka5 {[%clk 0:00:07]} 49. Ke6 {[%clk 0:00:05.8]}
49... a3 {[%clk 0:00:07.4]} 50. Kd5 {[%clk 0:00:06.5]} 50... a2 {[%clk
0:00:05.3]} 51. Rh8 {[%clk 0:00:06.8]} 51... Kb4 {[%clk 0:00:05.4]} 52. Ra8
{[%clk 0:00:07.1]} 52... Kb3 {[%clk 0:00:05.5]} 53. Kc5 {[%clk 0:00:07.8]} 53...
c6 {[%clk 0:00:05.3]} 54. Kxc6 {[%clk 0:00:05.2]} 54... b4 {[%clk 0:00:05.7]}
55. Kb5 {[%clk 0:00:05.8]} 55... Kb2 {[%clk 0:00:06.2]} 56. Rxa2+ {[%clk
0:00:06.4]} 56... Kxa2 {[%clk 0:00:06.4]} 57. Kxb4 {[%clk 0:00:07.3]} 1/2-1/2

[Event "*** Titled Tuesday Blitz"]
[Site "Chess.com"]
[Date "2020.10.20"]
[Round "2"]
[White "AniJak"]
[Black "chessmadara"]
[Result "1-0"]
[WhiteElo "2394"]
[BlackElo "2120"]
[TimeControl "180+1"]
[EndTime "10:19:08 PDT"]
[Termination "AniJak won on time"]

1. e4 {[%clk 0:03:00.9]} 1... c5 {[%clk 0:02:59]} 2. Nf3 {[%clk 0:02:58.5]} 2...
Nc6 {[%clk 0:02:58.1]} 3. d4 {[%clk 0:02:58.1]} 3... cxd4 {[%clk 0:02:57.8]} 4.
Nxd4 {[%clk 0:02:58.3]} 4... g6 {[%clk 0:02:55.5]} 5. c4 {[%clk 0:02:57.3]} 5...
Bg7 {[%clk 0:02:53.8]} 6. Be3 {[%clk 0:02:55.6]} 6... Nf6 {[%clk 0:02:53.3]} 7.
Nc3 {[%clk 0:02:49.9]} 7... O-O {[%clk 0:02:53]} 8. Be2 {[%clk 0:02:48.9]} 8...
d6 {[%clk 0:02:52.9]} 9. O-O {[%clk 0:02:47.7]} 9... Bd7 {[%clk 0:02:51.3]} 10.
Kh1 {[%clk 0:02:45]} 10... Nxd4 {[%clk 0:02:50]} 11. Bxd4 {[%clk 0:02:44.6]}
11... Bc6 {[%clk 0:02:50.6]} 12. f3 {[%clk 0:02:44.2]} 12... a5 {[%clk
0:02:49.2]} 13. Rc1 {[%clk 0:02:41.8]} 13... a4 {[%clk 0:02:40.7]} 14. a3 {[%clk
0:02:28.1]} 14... Nd7 {[%clk 0:02:37.8]} 15. Bxg7 {[%clk 0:02:26.5]} 15... Kxg7
{[%clk 0:02:38.7]} 16. Nd5 {[%clk 0:02:26.4]} 16... Nc5 {[%clk 0:02:36]} 17. Nb4
{[%clk 0:02:20.8]} 17... h5 {[%clk 0:02:13.4]} 18. Re1 {[%clk 0:02:20.6]} 18...
h4 {[%clk 0:02:10]} 19. h3 {[%clk 0:02:16.8]} 19... Qd7 {[%clk 0:01:56.7]} 20.
Bf1 {[%clk 0:02:14.3]} 20... Rfd8 {[%clk 0:01:35.3]} 21. Nd5 {[%clk 0:02:14]}
21... Bxd5 {[%clk 0:01:30.9]} 22. exd5 {[%clk 0:02:13.9]} 22... Re8 {[%clk
0:01:28.7]} 23. Rc3 {[%clk 0:02:12.5]} 23... Ra6 {[%clk 0:00:51.3]} 24. Qd4+
{[%clk 0:02:10.7]} 24... Kg8 {[%clk 0:00:48.9]} 25. Qxh4 {[%clk 0:02:10]} 25...
Rb6 {[%clk 0:00:43.3]} 26. Rc2 {[%clk 0:01:53]} 26... Qf5 {[%clk 0:00:39.6]} 27.
Rce2 {[%clk 0:01:49]} 27... e6 {[%clk 0:00:35.9]} 28. dxe6 {[%clk 0:01:48.1]}
28... Nxe6 {[%clk 0:00:36.4]} 29. c5 {[%clk 0:01:37.3]} 29... dxc5 {[%clk
0:00:35.9]} 30. Qxa4 {[%clk 0:01:36.1]} 30... Rd8 {[%clk 0:00:34.6]} 31. Qa5
{[%clk 0:01:30.6]} 31... Rbd6 {[%clk 0:00:33.8]} 32. Re5 {[%clk 0:01:29.1]}
32... Qc2 {[%clk 0:00:32.6]} 33. R5e2 {[%clk 0:01:28.1]} 33... Qb3 {[%clk
0:00:31.4]} 34. Qc3 {[%clk 0:01:17.8]} 34... Qb6 {[%clk 0:00:30]} 35. Qc1 {[%clk
0:01:10.7]} 35... Qc6 {[%clk 0:00:27.5]} 36. f4 {[%clk 0:01:08.4]} 36... Nd4
{[%clk 0:00:27.2]} 37. Re5 {[%clk 0:01:03.3]} 37... Ne6 {[%clk 0:00:26.6]} 38.
f5 {[%clk 0:01:02.5]} 38... gxf5 {[%clk 0:00:27.2]} 39. Rxf5 {[%clk 0:01:01.3]}
39... Rd5 {[%clk 0:00:27.2]} 40. Rf3 {[%clk 0:00:55.2]} 40... Rh5 {[%clk
0:00:22.7]} 41. Rg3+ {[%clk 0:00:54.9]} 41... Kf8 {[%clk 0:00:22.1]} 42. Be2
{[%clk 0:00:46.5]} 42... Rh8 {[%clk 0:00:20.9]} 43. Bf3 {[%clk 0:00:46.8]} 43...
Qd6 {[%clk 0:00:20]} 44. Qc3 {[%clk 0:00:46.5]} 44... Qxg3 {[%clk 0:00:18]} 45.
Qxh8+ {[%clk 0:00:46.3]} 45... Ke7 {[%clk 0:00:18.6]} 46. Qc3 {[%clk 0:00:43.1]}
46... b5 {[%clk 0:00:16]} 47. b4 {[%clk 0:00:41.5]} 47... cxb4 {[%clk 0:00:15]}
48. axb4 {[%clk 0:00:41.8]} 48... Qf2 {[%clk 0:00:12.6]} 49. Qe3 {[%clk
0:00:40.1]} 49... Qh4 {[%clk 0:00:10.8]} 50. Qa7+ {[%clk 0:00:39.2]} 50... Kf8
{[%clk 0:00:10.5]} 51. Qe3 {[%clk 0:00:39]} 51... Qxb4 {[%clk 0:00:09.7]} 52.
Bg4 {[%clk 0:00:38.4]} 52... Re8 {[%clk 0:00:07.9]} 53. Qh6+ {[%clk 0:00:37]}
53... Kg8 {[%clk 0:00:08.3]} 54. Rf1 {[%clk 0:00:33.4]} 54... Qe4 {[%clk
0:00:05.9]} 55. Bxe6 {[%clk 0:00:31.8]} 55... Rxe6 {[%clk 0:00:05.6]} 56. Qg5+
{[%clk 0:00:31.9]} 56... Qg6 {[%clk 0:00:05.6]} 57. Qxb5 {[%clk 0:00:31]} 57...
Qg3 {[%clk 0:00:05.6]} 58. Qf5 {[%clk 0:00:29.6]} 58... Qg7 {[%clk 0:00:04.3]}
59. Qf3 {[%clk 0:00:28.7]} 59... Rg6 {[%clk 0:00:04.2]} 60. Kh2 {[%clk
0:00:27.9]} 60... Rg5 {[%clk 0:00:02.1]} 61. Rf2 {[%clk 0:00:27.4]} 61... Rg6
{[%clk 0:00:02.3]} 62. g3 {[%clk 0:00:27.8]} 62... Re6 {[%clk 0:00:02.3]} 63. h4
{[%clk 0:00:28]} 63... Rc6 {[%clk 0:00:01.5]} 64. Kh3 {[%clk 0:00:28.2]} 1-0

[Event "*** Titled Tuesday Blitz"]
[Site "Chess.com"]
[Date "2020.10.20"]
[Round "2"]
[White "Jospem"]
[Black "GothamChess"]
[Result "1/2-1/2"]
[WhiteElo "2949"]
[BlackElo "2616"]
[TimeControl "180+1"]
[EndTime "10:19:10 PDT"]
[Termination "Game drawn by stalemate"]

1. e4 {[%clk 0:03:00.9]} 1... c6 {[%clk 0:02:59.1]} 2. d4 {[%clk 0:03:01.1]}
2... d5 {[%clk 0:03:00]} 3. exd5 {[%clk 0:03:02]} 3... cxd5 {[%clk 0:03:00.1]}
4. Bd3 {[%clk 0:03:02.6]} 4... Nc6 {[%clk 0:03:00.5]} 5. c3 {[%clk 0:03:02.8]}
5... g6 {[%clk 0:03:01]} 6. Nf3 {[%clk 0:03:02.4]} 6... Nh6 {[%clk 0:03:01]} 7.
O-O {[%clk 0:03:02.1]} 7... Bg7 {[%clk 0:03:00.2]} 8. Re1 {[%clk 0:02:59.5]}
8... O-O {[%clk 0:02:58.9]} 9. h3 {[%clk 0:02:53.6]} 9... Nf5 {[%clk 0:02:35.4]}
10. Bf4 {[%clk 0:02:39.9]} 10... Nd6 {[%clk 0:02:32.7]} 11. Nbd2 {[%clk
0:02:37.7]} 11... Bf5 {[%clk 0:02:27.6]} 12. Qe2 {[%clk 0:02:33.4]} 12... Bxd3
{[%clk 0:02:26.2]} 13. Qxd3 {[%clk 0:02:34.3]} 13... f6 {[%clk 0:02:16.9]} 14.
c4 {[%clk 0:01:54.7]} 14... Nf7 {[%clk 0:01:58.7]} 15. Qb3 {[%clk 0:01:27.3]}
15... Na5 {[%clk 0:01:50.4]} 16. Qb5 {[%clk 0:01:21]} 16... dxc4 {[%clk
0:01:43.9]} 17. Nxc4 {[%clk 0:01:21]} 17... Nxc4 {[%clk 0:01:29.8]} 18. Qxc4
{[%clk 0:01:21.9]} 18... Kh8 {[%clk 0:01:18.3]} 19. d5 {[%clk 0:01:12]} 19...
Nd6 {[%clk 0:01:09]} 20. Qb3 {[%clk 0:01:09.6]} 20... Nf5 {[%clk 0:01:01.2]} 21.
Qxb7 {[%clk 0:01:04.8]} 21... g5 {[%clk 0:00:59.4]} 22. Bh2 {[%clk 0:01:02.8]}
22... h5 {[%clk 0:00:57.9]} 23. g4 {[%clk 0:00:59.6]} 23... hxg4 {[%clk
0:00:54.4]} 24. hxg4 {[%clk 0:01:00.5]} 24... Nh6 {[%clk 0:00:48.3]} 25. Rxe7
{[%clk 0:00:58]} 25... Rg8 {[%clk 0:00:48.6]} 26. Kg2 {[%clk 0:00:38.3]} 26...
Rc8 {[%clk 0:00:45.6]} 27. Rh1 {[%clk 0:00:31.5]} 27... Rc4 {[%clk 0:00:43.9]}
28. Bg3 {[%clk 0:00:31.1]} 28... Kh7 {[%clk 0:00:37.3]} 29. Qd7 {[%clk
0:00:21.4]} 29... Qxd7 {[%clk 0:00:35.2]} 30. Rxd7 {[%clk 0:00:22.3]} 30... Rxg4
{[%clk 0:00:34.2]} 31. Rxa7 {[%clk 0:00:22.4]} 31... Kg6 {[%clk 0:00:34.4]} 32.
d6 {[%clk 0:00:17.1]} 32... f5 {[%clk 0:00:34.7]} 33. Kf1 {[%clk 0:00:11.6]}
33... f4 {[%clk 0:00:34.3]} 34. Bh2 {[%clk 0:00:10.9]} 34... Nf5 {[%clk
0:00:32.9]} 35. d7 {[%clk 0:00:11.1]} 35... Rd8 {[%clk 0:00:32.7]} 36. b4 {[%clk
0:00:10.3]} 36... Kf7 {[%clk 0:00:23.7]} 37. Rg1 {[%clk 0:00:09.9]} 37... Rxg1+
{[%clk 0:00:22]} 38. Bxg1 {[%clk 0:00:05.2]} 38... g4 {[%clk 0:00:22.3]} 39.
Ng5+ {[%clk 0:00:04.7]} 39... Ke7 {[%clk 0:00:21.3]} 40. Bh2 {[%clk 0:00:04.6]}
40... Bd4 {[%clk 0:00:21.7]} 41. Ra5 {[%clk 0:00:02.7]} 41... g3 {[%clk
0:00:14.7]} 42. Bxg3 {[%clk 0:00:02.2]} 42... Nxg3+ {[%clk 0:00:11.8]} 43. fxg3
{[%clk 0:00:02.1]} 43... fxg3 {[%clk 0:00:12.7]} 44. Kg2 {[%clk 0:00:02.7]}
44... Rxd7 {[%clk 0:00:10.1]} 45. Kxg3 {[%clk 0:00:02.2]} 45... Bc3 {[%clk
0:00:08.8]} 46. Rf5 {[%clk 0:00:02.4]} 46... Bxb4 {[%clk 0:00:07.5]} 47. Ne4
{[%clk 0:00:03.1]} 47... Rd4 {[%clk 0:00:06.9]} 48. Kf4 {[%clk 0:00:03.7]} 48...
Bd2+ {[%clk 0:00:06.3]} 49. Kf3 {[%clk 0:00:03.4]} 49... Bc1 {[%clk 0:00:04.9]}
50. Rb5 {[%clk 0:00:03.1]} 50... Rd3+ {[%clk 0:00:04.5]} 51. Ke2 {[%clk
0:00:02.8]} 51... Ra3 {[%clk 0:00:05.2]} 52. Rb7+ {[%clk 0:00:02]} 52... Kd8
{[%clk 0:00:05.4]} 53. Kd1 {[%clk 0:00:02.4]} 53... Kc8 {[%clk 0:00:05.4]} 54.
Rb5 {[%clk 0:00:02.3]} 54... Bf4 {[%clk 0:00:05]} 55. Rc5+ {[%clk 0:00:02.4]}
55... Kd8 {[%clk 0:00:05.6]} 56. Rc2 {[%clk 0:00:03.1]} 56... Rd3+ {[%clk
0:00:05.2]} 57. Nd2 {[%clk 0:00:03.5]} 57... Kd7 {[%clk 0:00:04.2]} 58. Ke2
{[%clk 0:00:03.8]} 58... Rxd2+ {[%clk 0:00:04.3]} 59. Rxd2+ {[%clk 0:00:04.7]}
59... Bxd2 {[%clk 0:00:05.1]} 60. Kxd2 {[%clk 0:00:05.4]} 60... Kc7 {[%clk
0:00:06]} 61. Kc3 {[%clk 0:00:06.3]} 61... Kb8 {[%clk 0:00:06.9]} 62. a4 {[%clk
0:00:07]} 62... Ka8 {[%clk 0:00:07.8]} 63. Kb4 {[%clk 0:00:07.9]} 63... Kb8
{[%clk 0:00:08.7]} 64. a5 {[%clk 0:00:08.8]} 64... Ka8 {[%clk 0:00:09.6]} 65.
Kb5 {[%clk 0:00:09.7]} 65... Kb8 {[%clk 0:00:10.5]} 66. a6 {[%clk 0:00:10.6]}
66... Ka8 {[%clk 0:00:11.4]} 67. Kb6 {[%clk 0:00:11.5]} 67... Kb8 {[%clk
0:00:12.3]} 68. a7+ {[%clk 0:00:12.4]} 68... Ka8 {[%clk 0:00:13.2]} 69. Ka6
{[%clk 0:00:12.3]} 1/2-1/2

[Event "*** Titled Tuesday Blitz"]
[Site "Chess.com"]
[Date "2020.10.20"]
[Round "2"]
[White "TrickyFortem"]
[Black "Abdimalik_Abdisalimov"]
[Result "0-1"]
[WhiteElo "2477"]
[BlackElo "2748"]
[TimeControl "180+1"]
[EndTime "10:19:11 PDT"]
[Termination "Abdimalik_Abdisalimov won by resignation"]

1. e4 {[%clk 0:02:50.9]} 1... c5 {[%clk 0:02:59.9]} 2. Nf3 {[%clk 0:02:51]} 2...
d6 {[%clk 0:03:00.2]} 3. d4 {[%clk 0:02:51.1]} 3... cxd4 {[%clk 0:03:01.1]} 4.
Nxd4 {[%clk 0:02:52]} 4... Nf6 {[%clk 0:03:02]} 5. Nc3 {[%clk 0:02:52.2]} 5...
a6 {[%clk 0:03:02.9]} 6. Bc4 {[%clk 0:02:49]} 6... b5 {[%clk 0:03:02.4]} 7. Bb3
{[%clk 0:02:42.5]} 7... e6 {[%clk 0:03:02.1]} 8. O-O {[%clk 0:02:41.2]} 8... Be7
{[%clk 0:03:01.8]} 9. Re1 {[%clk 0:02:41.6]} 9... O-O {[%clk 0:03:01.3]} 10. a3
{[%clk 0:02:37.3]} 10... Bd7 {[%clk 0:02:36.1]} 11. Bg5 {[%clk 0:02:36.3]} 11...
Nc6 {[%clk 0:02:34.5]} 12. Nf3 {[%clk 0:02:33.2]} 12... Na5 {[%clk 0:02:32.5]}
13. Ba2 {[%clk 0:02:33.1]} 13... Rc8 {[%clk 0:02:26.4]} 14. Bf4 {[%clk
0:02:26.1]} 14... Bc6 {[%clk 0:02:12]} 15. Qd2 {[%clk 0:02:17.2]} 15... Qb6
{[%clk 0:01:43.3]} 16. Rad1 {[%clk 0:02:15.7]} 16... Rfd8 {[%clk 0:01:43.1]} 17.
Nd5 {[%clk 0:02:02.3]} 17... Bxd5 {[%clk 0:01:33.8]} 18. exd5 {[%clk 0:02:02.5]}
18... e5 {[%clk 0:01:34.7]} 19. Bg5 {[%clk 0:02:02]} 19... Nc4 {[%clk
0:01:32.2]} 20. Bxc4 {[%clk 0:02:01.2]} 20... Rxc4 {[%clk 0:01:30.5]} 21. c3
{[%clk 0:01:59.8]} 21... Qb7 {[%clk 0:01:25.3]} 22. Bxf6 {[%clk 0:01:53]} 22...
Bxf6 {[%clk 0:01:26.2]} 23. Qe3 {[%clk 0:01:50.1]} 23... g6 {[%clk 0:01:20.5]}
24. h3 {[%clk 0:01:43.2]} 24... Be7 {[%clk 0:00:57.7]} 25. g4 {[%clk 0:01:37.3]}
25... Rf8 {[%clk 0:00:53.7]} 26. Kg2 {[%clk 0:01:26.9]} 26... Rf4 {[%clk
0:00:50.8]} 27. Ng1 {[%clk 0:01:11.2]} 27... Bd8 {[%clk 0:00:49.4]} 28. f3
{[%clk 0:01:08.8]} 28... f5 {[%clk 0:00:48]} 29. Ne2 {[%clk 0:01:04.9]} 29...
Bb6 {[%clk 0:00:35.6]} 30. Qd2 {[%clk 0:01:00.6]} 30... Rc4 {[%clk 0:00:20.6]}
31. Qg5 {[%clk 0:00:51.4]} 31... Kh8 {[%clk 0:00:19.5]} 32. Ng3 {[%clk
0:00:42.7]} 32... Rf4 {[%clk 0:00:17]} 33. Ne2 {[%clk 0:00:42.3]} 33... Rc4
{[%clk 0:00:12.6]} 34. Rf1 {[%clk 0:00:39.5]} 34... Qf7 {[%clk 0:00:12.6]} 35.
Ng3 {[%clk 0:00:32]} 35... Rf4 {[%clk 0:00:11.4]} 36. Ne2 {[%clk 0:00:31.9]}
36... Rc4 {[%clk 0:00:10.9]} 37. Rd3 {[%clk 0:00:28.8]} 37... Rc5 {[%clk
0:00:11.3]} 38. Rfd1 {[%clk 0:00:17.5]} 38... Bd8 {[%clk 0:00:11.9]} 39. Qe3
{[%clk 0:00:15.8]} 39... Bb6 {[%clk 0:00:12.8]} 40. Qg5 {[%clk 0:00:15.8]} 40...
Rg8 {[%clk 0:00:12.6]} 41. Ng3 {[%clk 0:00:13.5]} 41... Rc4 {[%clk 0:00:11.5]}
42. Rf1 {[%clk 0:00:12]} 42... Bd8 {[%clk 0:00:11.7]} 43. Qd2 {[%clk 0:00:11.8]}
43... Bh4 {[%clk 0:00:11.9]} 44. Qe2 {[%clk 0:00:11.6]} 44... Rf8 {[%clk
0:00:12.1]} 45. Nh1 {[%clk 0:00:11.2]} 45... Rf4 {[%clk 0:00:12.3]} 46. Ng3
{[%clk 0:00:10.9]} 46... h5 {[%clk 0:00:12.2]} 47. gxf5 {[%clk 0:00:09.6]} 47...
gxf5 {[%clk 0:00:12.6]} 48. Nh1 {[%clk 0:00:09.9]} 48... Rg8+ {[%clk 0:00:12.8]}
49. Kh2 {[%clk 0:00:10.4]} 49... e4 {[%clk 0:00:12.5]} 50. Rd4 {[%clk
0:00:09.2]} 50... Bf6 {[%clk 0:00:08.8]} 51. Rd2 {[%clk 0:00:08.8]} 51... Be5
{[%clk 0:00:08.9]} 52. Rg1 {[%clk 0:00:05.6]} 52... Rxf3+ {[%clk 0:00:08.4]} 53.
Ng3 {[%clk 0:00:05.4]} 53... h4 {[%clk 0:00:08.8]} 54. Kh1 {[%clk 0:00:05.2]}
54... hxg3 {[%clk 0:00:08.6]} 55. Qg2 {[%clk 0:00:04.5]} 55... Qh7 {[%clk
0:00:07.1]} 56. Rf2 {[%clk 0:00:04.6]} 56... Rxf2 {[%clk 0:00:07.4]} 0-1

[Event "*** Titled Tuesday Blitz"]
[Site "Chess.com"]
[Date "2020.10.20"]
[Round "2"]
[White "ScarpaChess"]
[Black "ChainsOfFantasia"]
[Result "0-1"]
[WhiteElo "2438"]
[BlackElo "2470"]
[TimeControl "180+1"]
[EndTime "10:19:12 PDT"]
[Termination "ChainsOfFantasia won by resignation"]

1. d4 {[%clk 0:03:00.9]} 1... Nf6 {[%clk 0:02:58.2]} 2. Nf3 {[%clk 0:03:00.9]}
2... d5 {[%clk 0:02:57]} 3. Bf4 {[%clk 0:03:00.6]} 3... c5 {[%clk 0:02:55.2]} 4.
e3 {[%clk 0:02:55.4]} 4... Nc6 {[%clk 0:02:53.8]} 5. c3 {[%clk 0:02:55.3]} 5...
Qb6 {[%clk 0:02:52.1]} 6. Qc1 {[%clk 0:02:53.6]} 6... cxd4 {[%clk 0:02:44.2]} 7.
exd4 {[%clk 0:02:51.5]} 7... Bf5 {[%clk 0:02:43.6]} 8. Nbd2 {[%clk 0:02:40.3]}
8... Rc8 {[%clk 0:02:42.2]} 9. a3 {[%clk 0:02:39.8]} 9... e6 {[%clk 0:02:41.6]}
10. Be2 {[%clk 0:02:39.2]} 10... h6 {[%clk 0:02:39.8]} 11. O-O {[%clk
0:02:37.9]} 11... Be7 {[%clk 0:02:39.8]} 12. h3 {[%clk 0:02:34.6]} 12... O-O
{[%clk 0:02:39]} 13. Re1 {[%clk 0:02:33.5]} 13... Ne4 {[%clk 0:02:16.1]} 14. Bd3
{[%clk 0:02:27.1]} 14... Nxd2 {[%clk 0:01:58.7]} 15. Qxd2 {[%clk 0:02:25.8]}
15... Bxd3 {[%clk 0:01:56.8]} 16. Qxd3 {[%clk 0:02:23.4]} 16... Na5 {[%clk
0:01:43.1]} 17. Rab1 {[%clk 0:02:21.1]} 17... Nc4 {[%clk 0:01:25.2]} 18. Ne5
{[%clk 0:02:13.6]} 18... Nxe5 {[%clk 0:01:17.7]} 19. Bxe5 {[%clk 0:02:12.9]}
19... Bd6 {[%clk 0:01:17.9]} 20. h4 {[%clk 0:01:49.5]} 20... Bxe5 {[%clk
0:01:15.3]} 21. Rxe5 {[%clk 0:01:45.1]} 21... Qa6 {[%clk 0:01:14.2]} 22. Qxa6
{[%clk 0:01:23.2]} 22... bxa6 {[%clk 0:01:15.1]} 23. Re3 {[%clk 0:01:19.7]}
23... Rb8 {[%clk 0:01:11.7]} 24. b3 {[%clk 0:01:15.1]} 24... Rb6 {[%clk
0:01:06.7]} 25. Kf1 {[%clk 0:01:12.4]} 25... Rfb8 {[%clk 0:01:03.7]} 26. b4
{[%clk 0:01:12.1]} 26... Rc8 {[%clk 0:01:03.6]} 27. Ke2 {[%clk 0:01:11.5]} 27...
Kf8 {[%clk 0:00:56.7]} 28. Kd2 {[%clk 0:01:11.9]} 28... Ke7 {[%clk 0:00:52.9]}
29. a4 {[%clk 0:01:11.7]} 29... a5 {[%clk 0:00:46.4]} 30. Rb3 {[%clk 0:00:56.8]}
30... Rc4 {[%clk 0:00:44.3]} 31. b5 {[%clk 0:00:47.6]} 31... Rxa4 {[%clk
0:00:42.3]} 32. Re1 {[%clk 0:00:47.4]} 32... Ra2+ {[%clk 0:00:40.8]} 33. Ke3
{[%clk 0:00:47.5]} 33... a4 {[%clk 0:00:38.3]} 34. Rb4 {[%clk 0:00:47.4]} 34...
Kd6 {[%clk 0:00:35.8]} 35. Reb1 {[%clk 0:00:47.2]} 35... f6 {[%clk 0:00:35.1]}
36. c4 {[%clk 0:00:45.8]} 36... Ra3+ {[%clk 0:00:30.4]} 37. Kf4 {[%clk
0:00:45.4]} 37... g5+ {[%clk 0:00:29.1]} 38. hxg5 {[%clk 0:00:45.3]} 38... hxg5+
{[%clk 0:00:29.8]} 39. Kg4 {[%clk 0:00:44.1]} 39... dxc4 {[%clk 0:00:30.7]} 40.
Rxc4 {[%clk 0:00:43.2]} 40... Ra2 {[%clk 0:00:26.9]} 41. Kg3 {[%clk 0:00:31.3]}
41... Ra3+ {[%clk 0:00:26.9]} 42. Kg4 {[%clk 0:00:30.9]} 42... Rb3 {[%clk
0:00:27.3]} 43. Rxb3 {[%clk 0:00:28.3]} 43... axb3 {[%clk 0:00:28.2]} 44. Rb4
{[%clk 0:00:28.2]} 44... a6 {[%clk 0:00:28.6]} 45. Rxb3 {[%clk 0:00:26.9]} 45...
axb5 {[%clk 0:00:26.1]} 46. Rb4 {[%clk 0:00:25]} 46... Kc6 {[%clk 0:00:23.4]}
47. Kh5 {[%clk 0:00:24.7]} 47... Ra6 {[%clk 0:00:21.2]} 48. Kg6 {[%clk
0:00:25.2]} 48... Ra4 {[%clk 0:00:19.8]} 49. Rb1 {[%clk 0:00:23.5]} 49... f5
{[%clk 0:00:13.5]} 50. Kxg5 {[%clk 0:00:20.5]} 50... Rxd4 {[%clk 0:00:13.4]} 51.
Rb2 {[%clk 0:00:21.1]} 51... b4 {[%clk 0:00:11.4]} 52. Kf6 {[%clk 0:00:21.4]}
52... Kd5 {[%clk 0:00:11.8]} 53. f3 {[%clk 0:00:18.8]} 53... Kc4 {[%clk
0:00:11.4]} 54. Ke5 {[%clk 0:00:17.1]} 54... Kc3 {[%clk 0:00:09]} 55. Rb1 {[%clk
0:00:13.5]} 55... Rd2 {[%clk 0:00:09.2]} 56. g4 {[%clk 0:00:13.4]} 56... fxg4
{[%clk 0:00:09]} 57. fxg4 {[%clk 0:00:13.9]} 57... Rg2 {[%clk 0:00:09.9]} 58.
Kxe6 {[%clk 0:00:08.1]} 58... Rxg4 {[%clk 0:00:09.3]} 59. Kf5 {[%clk 0:00:08.6]}
59... Rd4 {[%clk 0:00:08.2]} 60. Ke5 {[%clk 0:00:08.6]} 60... Rd8 {[%clk
0:00:07.5]} 61. Ke4 {[%clk 0:00:08.7]} 61... b3 {[%clk 0:00:07.3]} 62. Ke3
{[%clk 0:00:08.6]} 62... b2 {[%clk 0:00:07.1]} 0-1